Cogmind - Beta 12 @@@ ROGUE MODE // 2023.06.27 @ 17:36:31 Player: alexaub Result: Destroyed by S-43 Plague with Heavy Machine Gun Performance ------------- Evolutions (9) 4500 Regions Visited (21) 4200 Robots Destroyed (131) 655 Value Destroyed (5023) 5023 Prototype IDs (23) 460 Alien Tech Used (0) 0 Bonus (1557) 1557 TOTAL SCORE: 16395 Bonus ------- High Alert Combat Kills 324 Follower Combat Kills 333 Aligned with FarCom 300 Met Data Miner 300 Met Imprinter 300 Cogmind --------- Core Integrity 0/1600 Matter 295/300 Energy 100/100 System Corruption 10% Temperature Cool (0) Movement Core (50) Location -1/Access Parts ------- > --- POWER (3) -------- (None) > --- PROPULSION (6) --- Combat Antigrav System > --- UTILITY (12) ----- Advanced Melee Analysis Suite Advanced Launcher Guidance Computer > --- WEAPON (4) ------- (None) > --- INVENTORY (5) ---- Advanced Matter Compressor (270) Experimental Shock Absorption System Enhanced Force Rifle Enhanced Force Rifle Peak State ------------ > --- POWER ------------ Light Antimatter Reactor Light Particle Reactor > --- PROPULSION ------- Antigrav Array Antigrav Array Combat Linear Gravjet Combat Linear Gravjet > --- UTILITY ---------- Medium Storage Unit Experimental Energy Well Advanced Melee Analysis Suite Advanced Melee Analysis Suite Advanced Melee Analysis Suite Advanced Melee Analysis Suite Advanced Launcher Guidance Computer Advanced Target Analyzer Advanced Actuator Array Advanced Actuator Array Advanced ECM Suite Mini Drone Bay > --- WEAPON ----------- Phasing Sabre Phasing Sabre Enhanced Force Lance > --- INVENTORY -------- Fusion Compressor Armored Medium Treads Improved Antigrav System Improved Linear Gravjet Combat Antigrav System Combat Antigrav System Advanced Matter Compressor Layered Medium Armor Plating Layered Medium Armor Plating Fusion Bomb Launcher [Rating: 160] Favorites ----------- Power Light Angular Momentum Engine Engine Light Angular Momentum Engine Power Core Light Fission Core Reactor Light Antimatter Reactor Propulsion Carbon-fiber Leg Treads Armored Medium Treads Leg Carbon-fiber Leg Wheel Wheel Hover Unit Combat Antigrav System Flight Unit Nuclear Pulse Array Utility Advanced Melee Analysis Suite Device Advanced Weight Redist. System Storage Medium Storage Unit Processor Advanced Melee Analysis Suite Protection Hardened Medium Armor Plating Weapon Longsword +1 Energy Gun Particle Gun Energy Cannon Heavy Particle Cannon Ballistic Gun Shotgun Launcher Rocket Launcher Impact Weapon Great Maul Slashing Weapon Longsword +1 Piercing Weapon Enhanced Force Lance Build | -11 -10 -10 -10 -9 -8 -7 -7 -7 -7 -6 -6 -6 -6 -6 -5 -5 -4 -4 -3 -2 -1 ------- Run | Jun Mat Min Exi Min Mat Fac Low Low Dat Pro Fac Low Low Zio Pro Fac Fac Ext Res Res Acc Slots Evolved 18 | . . . . . 4 2 . . . . 2 . . . . 2 2 . 2 2 2 Power 2 | . . . . . 1 . . . . . . . . . . . . . . . 1 Propulsion 4 | . . . . . 2 . . . . . 1 . . . . . . . 1 . . Utility 10 | . . . . . 1 1 . . . . 1 . . . . 2 2 . 1 2 . Weapon 2 | . . . . . . 1 . . . . . . . . . . . . . . 1 Parts Attached 235 | 7 3 9 6 . 20 29 . 6 . . 10 . 2 2 . 17 2 44 39 23 16 Power 31 | 1 . 2 . . 1 2 . 1 . . 3 . . . . 2 . 9 4 4 2 Engine 5 | 1 . 2 . . . . . 1 . . 1 . . . . . . . . . . Core 13 | . . . . . 1 2 . . . . 2 . . . . 2 . 2 1 2 1 Reactor 13 | . . . . . . . . . . . . . . . . . . 7 3 2 1 Propulsion 86 | 2 . 4 . . 11 8 . 2 . . 3 . . 1 . 3 . 14 19 13 6 Treads 8 | . . . . . . . . . . . . . . . . . . 1 3 1 3 Leg 20 | . . 3 . . 7 2 . . . . . . . . . . . 8 . . . Wheel 3 | 2 . 1 . . . . . . . . . . . . . . . . . . . Hover 34 | . . . . . 1 . . 1 . . 1 . . . . . . 2 16 11 2 Flight 21 | . . . . . 3 6 . 1 . . 2 . . 1 . 3 . 3 . 1 1 Utility 67 | 1 1 1 1 . 5 10 . . . . 4 . 1 1 . 10 2 11 11 6 2 Device 34 | . 1 . . . 3 6 . . . . 2 . 1 1 . 4 1 4 6 3 2 Storage 9 | 1 . 1 . . 1 1 . . . . . . . . . 2 1 . 1 1 . Processor 13 | . . . . . . 1 . . . . 1 . . . . 3 . 5 3 . . Hackware . | . . . . . . . . . . . . . . . . . . . . . . Protection 11 | . . . 1 . 1 2 . . . . 1 . . . . 1 . 2 1 2 . Artifact . | . . . . . . . . . . . . . . . . . . . . . . Weapon 51 | 3 2 2 5 . 3 9 . 3 . . . . 1 . . 2 . 10 5 . 6 Energy Gun 8 | 2 1 . . . . . . . . . . . . . . . . . . . 5 Energy Cannon 3 | . . 1 2 . . . . . . . . . . . . . . . . . . Ballistic Gun 2 | 1 1 . . . . . . . . . . . . . . . . . . . . Ballistic Cannon . | . . . . . . . . . . . . . . . . . . . . . . Launcher 11 | . . 1 1 . 1 1 . 1 . . . . . . . 1 . 2 2 . 1 Special Weapon . | . . . . . . . . . . . . . . . . . . . . . . Impact Weapon 9 | . . . 1 . 1 3 . . . . . . 1 . . 1 . 1 1 . . Slashing Weapon 17 | . . . 1 . 1 5 . 2 . . . . . . . . . 7 1 . . Piercing Weapon 1 | . . . . . . . . . . . . . . . . . . . 1 . . Special Melee Weapon . | . . . . . . . . . . . . . . . . . . . . . . Unidentified Prototypes 12 | . . . 3 . . 1 . . . . . . . . . 1 1 . 2 3 1 Parts Lost 61 | . . . . . . . . 4 . . . . 1 . . 1 . 20 8 19 8 Power 15 | . . . . . . . . 2 . . . . . . . . . 5 3 4 1 Propulsion 21 | . . . . . . . . 2 . . . . 1 . . . . 8 . 8 2 Utility 18 | . . . . . . . . . . . . . . . . 1 . 5 4 5 3 Weapon 7 | . . . . . . . . . . . . . . . . . . 2 1 2 2 Highest Loss Streak 7 | . . . . . . . . 4 . . . . 1 . . 1 . 5 3 6 7 To Critical Strikes 2 | . . . . . . . . 1 . . . . . . . . . 1 . . . Average Slot Usage (%) 85 | . 91 99 99 100 78 96 92 74 84 84 84 86 83 88 91 87 78 79 92 72 34 Engine 4 | . 14 13 14 14 9 4 . 4 7 7 4 . . . . . . . . . . Core 3 | . . . . . 9 9 15 . . . 1 6 6 6 6 9 10 4 1 . 2 Reactor 1 | . . . . . . . . . . . . . . . . . . 2 5 3 . Leg 9 | . . 23 28 28 21 20 . . . . . . . . . . . 4 5 . . Wheel 1 | . 28 4 . . . . . . . . . . . . . . . . . . . Hover 4 | . . . . . . . . 2 7 7 9 . . . . . . 2 16 14 1 Flight 7 | . . . . . . 8 30 21 23 23 23 33 28 28 31 18 15 8 1 . 3 Device 9 | . 5 14 10 . 2 8 7 7 7 7 6 6 10 15 20 22 15 10 12 11 . Storage 6 | . 14 14 14 14 9 7 7 7 7 7 6 6 6 6 6 5 5 3 . 6 . Processor 12 | . . . . . . 6 7 7 7 7 10 13 13 10 6 11 10 23 29 25 18 Protection 3 | . . . 3 14 8 5 7 7 7 7 5 6 2 . . . 5 3 2 . . Energy Cannon 1 | . . 12 10 . . . . . . . . . . . . . . . . . . Launcher 1 | . . 6 10 . 1 . . . . . . . . . . . . . 1 . . Impact Weapon 2 | . . . 3 14 8 6 7 2 . . . . 1 6 6 5 5 1 . . . Slashing Weapon 8 | . . . 3 14 8 12 7 11 15 15 13 13 13 13 13 11 10 9 10 2 . Naked Turns . | . . . . . . . . . . . . . . . . . . . . . . Heaviest Build 73 | 14 17 40 52 44 54 58 30 30 24 24 26 26 29 30 30 41 40 48 69 73 29 Greatest Support 105 | 20 20 30 30 30 72 72 30 30 24 24 36 36 36 40 40 41 41 90 105 81 75 Greatest Overweight (x) 3 | . . 1 1 1 1 1 . . . . . . . . . . . 1 2 3 3 Average Overweight (x) . | . . . . 1 . . . . . . . . . . . . . . . . . Largest Inventory Capacity 15 | 8 8 15 15 15 15 15 10 10 10 10 10 10 10 10 10 10 10 10 10 10 5 Average Capacity 10 | 6 8 10 15 15 15 13 10 10 10 10 10 10 10 10 10 9 10 8 5 9 5 Most Carried 15 | 4 8 8 14 11 15 15 10 10 10 10 10 9 10 10 10 10 10 10 10 10 5 Average Carried 8 | 2 7 7 9 10 11 12 9 9 10 10 9 9 9 9 10 9 9 7 5 7 3 Final Capacity 15 | 8 8 15 15 15 15 10 10 10 10 10 10 10 10 10 10 10 10 5 10 5 5 Final Carried 15 | 4 8 8 9 11 15 10 10 10 10 10 9 9 9 10 10 10 10 5 10 5 4 Class Distribution -------------------- 45% | Mutant 24% | Scavenger-Mutant 16% | Sprinter 10% | Infiltrator-Mutant Dominant Class ---------------- Mutant | -10/Materials Mutant | -10/Mines Mutant | -10/Exiles Mutant | -9/Mines Mutant | -8/Materials Mutant | -7/Factory Sprinter | -7/Lower Caves Sprinter | -7/Lower Caves Sprinter | -7/Data Miner Sprinter | -6/Proximity Caves Sprinter | -6/Factory Sprinter | -6/Lower Caves Sprinter | -6/Lower Caves Sprinter | -6/Zion Sprinter | -5/Proximity Caves Infiltrator-Mutant | -5/Factory Infiltrator-Mutant | -4/Factory Scavenger-Mutant | -4/Extension Scavenger-Mutant | -3/Research Scavenger-Mutant | -2/Research Mutant | -1/Access Resources | -11 -10 -10 -10 -9 -8 -7 -7 -7 -7 -6 -6 -6 -6 -6 -5 -5 -4 -4 -3 -2 -1 ----------- Run | Jun Mat Min Exi Min Mat Fac Low Low Dat Pro Fac Low Low Zio Pro Fac Fac Ext Res Res Acc Matter Collected 4184 | 203 103 139 . 60 128 345 50 60 . . . . 108 38 77 362 270 659 840 298 444 Remotely . | . . . . . . . . . . . . . . . . . . . . . . Salvage Created 6568 | . 147 22 . 107 448 379 47 84 . . 101 . . . . 606 77 1594 1352 1190 414 Parts 254 | . 12 2 . 2 17 10 . 1 . . 3 . . . . 12 . 64 66 50 15 Haulers Intercepted 13 | . . . . . 2 3 . . . . 1 . . . . 2 . . 2 3 . Recyclers Shooed 5 | . 1 . . . . . . . . . . . . . . 1 . . 1 2 . Parts Field Recycled . | . . . . . . . . . . . . . . . . . . . . . . Retrieved Matter . | . . . . . . . . . . . . . . . . . . . . . . Parts Self-Destructed 9 | . . . . . . . . 4 . 5 . . . . . . . . . . . Prevented 3 | . . . . . . . . 3 . . . . . . . . . . . . . Kills | -11 -10 -10 -10 -9 -8 -7 -7 -7 -7 -6 -6 -6 -6 -6 -5 -5 -4 -4 -3 -2 -1 ------- Run | Jun Mat Min Exi Min Mat Fac Low Low Dat Pro Fac Low Low Zio Pro Fac Fac Ext Res Res Acc Combat Hostiles Destroyed 85 | . 7 3 . 1 7 7 1 4 . . . . . . . 5 . 17 16 13 4 Melee 46 | . . . . 1 2 7 . 1 . . . . . . . . . 15 7 13 . Guns 9 | . 7 . . . . . . . . . . . . . . . . . . . 2 Cannons 1 | . . . . . . . . 1 . . . . . . . . . . . . . AOE 20 | . . 3 . . 1 . . . . . . . . . . 4 . 1 9 . 2 Classes Destroyed 15 | . 2 . . 1 4 1 . . . . . . . . . 1 . 4 1 1 . Worker 4 | . . . . . . . . . . . . . . . . 1 . . 1 2 . Builder 6 | . . . . . 1 . . . . . . . . . . 2 . 3 . . . Tunneler 1 | . . . . . . . . . . . . . . . . . . . 1 . . Hauler 13 | . . . . . 2 3 . . . . 1 . . . . 2 . . 2 3 . Recycler 11 | . . . . 1 1 . . . . . . . . . . 1 . 2 4 1 1 Operator 1 | . . . . . . . . . . . . . . . . . . 1 . . . Watcher 10 | . . . . . 1 1 . . . . . . . . . 2 2 2 1 1 . Swarmer 34 | . 5 3 . . 2 4 . 4 . . . . . . . 4 . . 7 5 . Saboteur 1 | . . . . . . . . . . . . . . . . . . . . 1 . Grunt 19 | . 2 . . 1 3 2 . . . . . . . . . . . 7 . . 4 Duelist 1 | . . . . . . . . . . . . . . . . . . 1 . . . Sentry 7 | . . . . . 2 . . . . . . . . . . 1 . 2 2 . . Hunter 9 | . . . . . . 1 1 . . . . . . . . . . 2 1 4 . Programmer 12 | . . . . . . . . . . . . . . . . . . 3 6 3 . Savage 2 | . . . . . . . . . . . . . . . . . . 2 . . . Best Kill Streak 7 | . 2 3 . 1 4 6 1 4 . . 1 . . . . 5 1 4 6 7 5 Combat Bots Only 6 | . 2 3 . 1 2 6 1 4 . . . . . . . 4 . 4 5 5 4 Max Kills in Single Turn 5 | . 1 3 . 1 1 1 1 1 . . 1 . . . . 5 1 2 4 1 3 Gunslinging . | . . . . . . . . . . . . . . . . . . . . . . Exploded 4 | . . 3 . . 1 . . . . . . . . . . 4 . 1 4 . 2 Melee 2 | . . . . 1 1 1 . 1 . . . . . . . . . 2 1 1 . Uniques/NPCs Destroyed . | . . . . . . . . . . . . . . . . . . . . . . Combat | -11 -10 -10 -10 -9 -8 -7 -7 -7 -7 -6 -6 -6 -6 -6 -5 -5 -4 -4 -3 -2 -1 -------- Run | Jun Mat Min Exi Min Mat Fac Low Low Dat Pro Fac Low Low Zio Pro Fac Fac Ext Res Res Acc Damage Taken 11751 | 8 145 25 . 31 410 294 22 347 . 26 . 19 20 . 28 137 . 2789 1220 3762 2468 Core 4007 | . 9 . . . 42 62 11 39 . . . 19 . . . 19 . 802 151 1245 1608 Absorbed by Shields 74 | . . . . . . 52 . . . . . . . . . . . 22 . . . Core Remaining (%) 77 | 100 . . . 96 92 . . . . 84 . . . . 97 98 . 30 88 14 . Volleys Fired 41 | . 14 2 . . 3 . . . . . . . . . . 1 . 5 10 . 6 Largest 4 | . 2 1 . . 1 . . . . . . . . . . 1 . 1 1 . 4 Hottest 295 | . 88 75 . . 33 . . . . . . . . . . 45 . 45 52 . 295 Shots Fired 68 | . 28 2 . . 3 . . . . . . . . . . 1 . 5 10 . 19 Gun 46 | . 28 . . . . . . . . . . . . . . . . . . . 18 Cannon 1 | . . 1 . . . . . . . . . . . . . . . . . . . Launcher 21 | . . 1 . . 3 . . . . . . . . . . 1 . 5 10 . 1 Special . | . . . . . . . . . . . . . . . . . . . . . . Kinetic 14 | . 14 . . . . . . . . . . . . . . . . . . . . Thermal 33 | . 14 1 . . . . . . . . . . . . . . . . . . 18 Explosive 21 | . . 1 . . 3 . . . . . . . . . . 1 . 5 10 . 1 Electromagnetic . | . . . . . . . . . . . . . . . . . . . . . . Robot Hit Streak 11 | . 7 . . . 1 . . . . . . . . . . 4 . 4 8 . 11 Robot Miss Streak 3 | . 3 . . . 3 . . . . . . . . . . 3 . 1 . . 1 Penetration Max . | . . . . . . . . . . . . . . . . . . . . . . Secondary Targets . | . . . . . . . . . . . . . . . . . . . . . . Shots Hit Robots 273 | . 19 . . 4 26 22 1 7 . . 1 . . . . 17 2 67 49 45 13 Core Hits 134 | . 9 3 . 1 4 8 . 1 . . 1 . . . . 9 . 39 28 20 11 Critical Kills 6 | . . . . 1 . 4 . . . . . . . . . . . . . . 1 Critical Parts Destroyed 16 | . . . . . 6 3 1 . . . . . . . . 3 2 . . . 1 Critical Strikes 46 | . . . . 1 7 8 1 . . . . . . . . 4 2 8 5 8 2 Destroy 2 | . . . . . . . . . . . . . . . . . . . . . 2 Smash 20 | . . . . 1 6 7 1 . . . . . . . . 3 2 . . . . Sever 14 | . . . . . 1 1 . . . . . . . . . 1 . 8 2 1 . Impale 10 | . . . . . . . . . . . . . . . . . . . 3 7 . Melee Attacks 343 | . . . . 5 43 34 1 9 . . 3 . . . . 29 3 75 62 79 . Impact 94 | . . . . 3 32 25 1 9 . . . . . . . 19 2 3 . . . Slashing 178 | . . . . 2 11 9 . . . . 3 . . . . 10 1 72 55 15 . Piercing 71 | . . . . . . . . . . . . . . . . . . . 7 64 . Sneak Attacks 53 | . . . . 1 10 3 1 . . . 1 . . . . 6 . 16 7 8 . Combat Hostiles 3 | . . . . . 1 . 1 . . . . . . . . . . 1 . . . Follow-up Attacks 42 | . . . . 1 6 4 . . . . . . . . . 3 . 13 9 6 . Damage Inflicted 17405 | 16 304 92 . 250 1663 1269 80 335 . . 82 . . . . 1314 149 4131 4110 2982 628 Guns 574 | . 288 . . . . . . . . . . . . . . . . . . . 286 Cannons . | . . . . . . . . . . . . . . . . . . . . . . Explosions 2498 | . . 92 . . 56 . . . . . . . . . . 223 . 398 1387 . 342 Melee 14301 | . . . . 250 1607 1269 80 335 . . 82 . . . . 1091 149 3733 2723 2982 . Ramming 32 | 16 16 . . . . . . . . . . . . . . . . . . . . Kinetic 117 | . 117 . . . . . . . . . . . . . . . . . . . . Thermal 457 | . 171 . . . . . . . . . . . . . . . . . . . 286 Explosive 2498 | . . 92 . . 56 . . . . . . . . . . 223 . 398 1387 . 342 Electromagnetic . | . . . . . . . . . . . . . . . . . . . . . . Impact 4016 | . . . . 210 1110 1098 80 335 . . . . . . . 937 149 97 . . . Slashing 7034 | . . . . 40 497 171 . . . . 82 . . . . 154 . 3636 2111 343 . Piercing 3251 | . . . . . . . . . . . . . . . . . . . 612 2639 . Highest Corruption 16 | . . . . . . . . . . . . . . . . . . 3 4 16 10 Average Corruption 4 | . . . . . . . . . . . . . . . . . . 2 3 5 7 Corruption Purged . | . . . . . . . . . . . . . . . . . . . . . . Corruption Blocked . | . . . . . . . . . . . . . . . . . . . . . . Effects 40 | . . . . . . . . . . . . . . . . . . 13 10 11 6 Message Errors 11 | . . . . . . . . . . . . . . . . . . 4 2 3 2 Matter Fused 6 | . . . . . . . . . . . . . . . . . . 2 2 1 1 Heat Flow Errors 4 | . . . . . . . . . . . . . . . . . . 2 1 . 1 Energy Discharges 9 | . . . . . . . . . . . . . . . . . . 1 4 4 . Parts Rejected 1 | . . . . . . . . . . . . . . . . . . . . 1 . Parts Fused 2 | . . . . . . . . . . . . . . . . . . 1 . 1 . Data Loss (minor) 4 | . . . . . . . . . . . . . . . . . . 3 . . 1 Data Loss (major) 2 | . . . . . . . . . . . . . . . . . . . 1 1 . Misdirections 1 | . . . . . . . . . . . . . . . . . . . . . 1 Overload Shots . | . . . . . . . . . . . . . . . . . . . . . . Overflow Damage 2945 | . . . . 92 432 245 80 65 . . . . . . . 436 149 314 536 596 . Projectiles 41 | . . . . . . . . 41 . . . . . . . . . . . . . Explosions 111 | . . . . . 16 . . . . . . . . . . . . 19 76 . . Melee 2793 | . . . . 92 416 245 80 24 . . . . . . . 436 149 295 460 596 . Knockbacks 13 | . . . . . 1 2 1 3 . . . . . . . 3 2 1 . . . Impact 12 | . . . . . 1 2 1 2 . . . . . . . 3 2 1 . . . Kinetic . | . . . . . . . . . . . . . . . . . . . . . . Secondary 1 | . . . . . . . . 1 . . . . . . . . . . . . . Self-Inflicted Damage 173 | 8 8 . . . . . . . . . . . . . . . . 85 72 . . Shots 5 | . . . . . . . . . . . . . . . . . . 4 1 . . Rammed 2 | 1 1 . . . . . . . . . . . . . . . . . . . . Targets Rammed 2 | 1 1 . . . . . . . . . . . . . . . . . . . . Kicked . | . . . . . . . . . . . . . . . . . . . . . . Crushed . | . . . . . . . . . . . . . . . . . . . . . . Highest Temperature 812 | . 138 38 . . 24 47 132 . . . 8 28 18 . . . . 252 144 5 812 Average Temperature 48 | . 47 29 . . 11 22 43 . . . 4 16 7 . . . . 106 27 1 395 Received Heat Transfer 1001 | . 42 15 . 18 144 19 12 9 . 6 . 9 9 . . 18 . 421 72 126 81 Effects 14 | . . . . . . . . . . . . . . . . . . . . . 14 Shutdowns 2 | . . . . . . . . . . . . . . . . . . . . . 2 Energy Bleed 1 | . . . . . . . . . . . . . . . . . . . . . 1 Interference 5 | . . . . . . . . . . . . . . . . . . . . . 5 Matter Decay 1 | . . . . . . . . . . . . . . . . . . . . . 1 Short Circuit 2 | . . . . . . . . . . . . . . . . . . . . . 2 Damage (minor) 2 | . . . . . . . . . . . . . . . . . . . . . 2 Damage (core) 1 | . . . . . . . . . . . . . . . . . . . . . 1 Siege Activations . | . . . . . . . . . . . . . . . . . . . . . . Robots Corrupted . | . . . . . . . . . . . . . . . . . . . . . . Combat Hostiles . | . . . . . . . . . . . . . . . . . . . . . . Parts Fried 28 | . . . . 1 7 7 2 2 . . . . . . . 7 2 . . . . Impact Corruptions 46 | . . . . 1 13 7 3 4 . . . . . . . 12 5 1 . . . Robots Melted . | . . . . . . . . . . . . . . . . . . . . . . Combat Hostiles . | . . . . . . . . . . . . . . . . . . . . . . Parts Melted 1 | . 1 . . . . . . . . . . . . . . . . . . . . Heat Transferred 888 | . 444 . . . . . . . . . . . . . . . . . . . 444 Parts Sabotaged . | . . . . . . . . . . . . . . . . . . . . . . Parts Stolen . | . . . . . . . . . . . . . . . . . . . . . . Parts Stripped . | . . . . . . . . . . . . . . . . . . . . . . Power Chain Reactions . | . . . . . . . . . . . . . . . . . . . . . . Missiles Intercepted . | . . . . . . . . . . . . . . . . . . . . . . Alert | -11 -10 -10 -10 -9 -8 -7 -7 -7 -7 -6 -6 -6 -6 -6 -5 -5 -4 -4 -3 -2 -1 ------- Run | Jun Mat Min Exi Min Mat Fac Low Low Dat Pro Fac Low Low Zio Pro Fac Fac Ext Res Res Acc Peak Influence 709 | . 235 144 . 50 187 215 . . . . 89 . . . . 318 176 499 621 709 424 Initial 424 | . . 91 . . 19 16 . . . . 65 . . . . . 86 86 261 285 424 Average 240 | . 100 89 . 32 109 101 . . . . 77 . . . . 241 117 237 399 435 389 Maximum Alert Level 3 | . 1 . . . . 1 . . . . . . . . . 1 . 2 2 3 2 Low Security (%) 46 | 100 91 100 . 100 100 66 . . . . 100 . . . . 33 100 42 . . . Level 1 32 | . 8 . . . . 33 . . . . . . . . . 66 . 44 56 43 31 Level 2 20 | . . . . . . . . . . . . . . . . . . 13 43 55 68 Level 3 . | . . . . . . . . . . . . . . . . . . . . 1 . Level 4 . | . . . . . . . . . . . . . . . . . . . . . . Level 5 . | . . . . . . . . . . . . . . . . . . . . . . High Security . | . . . . . . . . . . . . . . . . . . . . . . Max Security . | . . . . . . . . . . . . . . . . . . . . . . Squads Dispatched 20 | . 1 1 . . . 2 . 1 . . 1 . . . . . 2 3 3 5 1 Investigation 7 | . 1 1 . . . . . . . . 1 . . . . . 2 1 1 . . Extermination 5 | . . . . . . . . . . . . . . . . . . . 2 2 1 Reinforcement 6 | . . . . . . 2 . . . . . . . . . . . 2 . 2 . Assault 2 | . . . . . . . . 1 . . . . . . . . . . . 1 . Garrison . | . . . . . . . . . . . . . . . . . . . . . . Intercept . | . . . . . . . . . . . . . . . . . . . . . . Searches Triggered 2 | . . . . . . . . . . . . . . . . . . . . 1 1 Data Miner Redirects 1 | . . . . . . . . . . . . . . . . . 1 . . . . Construction Impeded . | . . . . . . . . . . . . . . . . . . . . . . Haulers Reinforced 1 | . . . . . . . . . . . . . . . . . . . . 1 . Active Scanning Responses . | . . . . . . . . . . . . . . . . . . . . . . Cargo Convoy Interrupts . | . . . . . . . . . . . . . . . . . . . . . . Stealth | -11 -10 -10 -10 -9 -8 -7 -7 -7 -7 -6 -6 -6 -6 -6 -5 -5 -4 -4 -3 -2 -1 --------- Run | Jun Mat Min Exi Min Mat Fac Low Low Dat Pro Fac Low Low Zio Pro Fac Fac Ext Res Res Acc Distress Signals 18 | . . . . . 2 2 . . . . . . . . . 1 . 2 3 7 1 Communications Jammed 21 | . . . . . . . . . . . . . . . . 2 . 19 . . . Distress Signals 21 | . . . . . . . . . . . . . . . . 2 . 19 . . . Times Spotted 225 | . 13 2 . 2 13 13 4 12 . 6 1 6 1 . 1 8 2 35 17 63 26 Peak Tracking Total 19 | . 3 2 . 2 7 7 4 12 . 3 1 5 1 . 1 5 1 5 6 19 15 Tactical Retreats 47 | . 2 . . 1 4 1 1 3 . 3 . 3 1 . . . . 8 3 14 3 Traps | -11 -10 -10 -10 -9 -8 -7 -7 -7 -7 -6 -6 -6 -6 -6 -5 -5 -4 -4 -3 -2 -1 ------- Run | Jun Mat Min Exi Min Mat Fac Low Low Dat Pro Fac Low Low Zio Pro Fac Fac Ext Res Res Acc Traps Triggered 14 | . . . . . . 2 . . . . 2 . . . . . . 8 . 2 . Indirectly . | . . . . . . . . . . . . . . . . . . . . . . Trap Hack Attempts . | . . . . . . . . . . . . . . . . . . . . . . Triggered . | . . . . . . . . . . . . . . . . . . . . . . Disarmed . | . . . . . . . . . . . . . . . . . . . . . . Reprogrammed . | . . . . . . . . . . . . . . . . . . . . . . Reused . | . . . . . . . . . . . . . . . . . . . . . . Traps Extracted . | . . . . . . . . . . . . . . . . . . . . . . Installed . | . . . . . . . . . . . . . . . . . . . . . . Triggered 2 | . . . . . . . . . . . . . 2 . . . . . . . . Machines | -11 -10 -10 -10 -9 -8 -7 -7 -7 -7 -6 -6 -6 -6 -6 -5 -5 -4 -4 -3 -2 -1 ---------- Run | Jun Mat Min Exi Min Mat Fac Low Low Dat Pro Fac Low Low Zio Pro Fac Fac Ext Res Res Acc Machines Disabled 6 | . . . . . . . . . . . . . . . . 2 . 3 1 . . Max in Single Turn 2 | . . . . . . . . . . . . . . . . 2 . 1 1 . . Machines Repaired . | . . . . . . . . . . . . . . . . . . . . . . Machines Sabotaged . | . . . . . . . . . . . . . . . . . . . . . . Overloaded Fab Kills . | . . . . . . . . . . . . . . . . . . . . . . Hacking | -11 -10 -10 -10 -9 -8 -7 -7 -7 -7 -6 -6 -6 -6 -6 -5 -5 -4 -4 -3 -2 -1 --------- Run | Jun Mat Min Exi Min Mat Fac Low Low Dat Pro Fac Low Low Zio Pro Fac Fac Ext Res Res Acc Machines Accessed 30 | . 1 1 . . 2 2 1 1 4 . 3 . 1 . 1 1 3 4 3 1 1 Terminals 20 | . 1 . . . 2 2 . . . . 2 . 1 . 1 1 1 4 3 1 1 Fabricators 3 | . . . . . . . . . . . 1 . . . . . 2 . . . . Repair Stations . | . . . . . . . . . . . . . . . . . . . . . . Recycling Units . | . . . . . . . . . . . . . . . . . . . . . . Scanalyzers . | . . . . . . . . . . . . . . . . . . . . . . Garrison Access . | . . . . . . . . . . . . . . . . . . . . . . Total Hacks 90 | . 3 1 . . 3 6 1 1 32 . 7 . 1 . 1 1 11 12 6 1 3 Successful 59 | . 1 1 . . 3 4 1 1 32 . 1 . 1 . 1 . 6 7 . . . Failed 31 | . 2 . . . . 2 . . . . 6 . . . . 1 5 5 6 1 3 Catastrophic 6 | . . . . . . . . . . . 2 . . . . . 1 1 1 1 . Database Lockouts . | . . . . . . . . . . . . . . . . . . . . . . Manual 23 | . 3 . 1 . 1 1 . . . . 5 . . . . 1 . 6 3 2 . Terminals 47 | . 3 . . . 3 6 . . . . 5 . 1 . 1 1 5 12 6 1 3 Fabricators 8 | . . . . . . . . . . . 2 . . . . . 6 . . . . Repair Stations . | . . . . . . . . . . . . . . . . . . . . . . Recycling Units . | . . . . . . . . . . . . . . . . . . . . . . Scanalyzers . | . . . . . . . . . . . . . . . . . . . . . . Garrison Access . | . . . . . . . . . . . . . . . . . . . . . . Terminal Hacks 51 | . . 1 . . 2 3 1 1 32 . . . 1 . 1 . 3 6 . . . Record 20 | . . . . . . 1 . . 11 . . . 1 . 1 . 3 3 . . . Part Schematic 13 | . . . . . . . . . 13 . . . . . . . . . . . . Robot Schematic 5 | . . . . . . . . . 5 . . . . . . . . . . . . Prototype ID Bank 4 | . . . . . . 1 . . 3 . . . . . . . . . . . . Open Door 3 | . . 1 . . . . 1 1 . . . . . . . . . . . . . Open DSF 1 | . . . . . . 1 . . . . . . . . . . . . . . . Level Access Points 1 | . . . . . 1 . . . . . . . . . . . . . . . . Branch Access Points 1 | . . . . . . . . . . . . . . . . . . 1 . . . Alert Level 1 | . . . . . . . . . . . . . . . . . . 1 . . . Locate Traps 1 | . . . . . . . . . . . . . . . . . . 1 . . . Zone Layout 1 | . . . . . 1 . . . . . . . . . . . . . . . . Fabricator Hacks 3 | . . . . . . . . . . . . . . . . . 3 . . . . Load Schematic 2 | . . . . . . . . . . . . . . . . . 2 . . . . Build 1 | . . . . . . . . . . . . . . . . . 1 . . . . Repair Station Hacks . | . . . . . . . . . . . . . . . . . . . . . . Recycling Unit Hacks . | . . . . . . . . . . . . . . . . . . . . . . Scanalyzer . | . . . . . . . . . . . . . . . . . . . . . . Garrison Access Hacks . | . . . . . . . . . . . . . . . . . . . . . . Unauthorized Hacks 5 | . 1 . . . 1 1 . . . . 1 . . . . . . 1 . . . Terminals 5 | . 1 . . . 1 1 . . . . 1 . . . . . . 1 . . . Assimilate 1 | . . . . . . . . . . . 1 . . . . . . . . . . Botnet 4 | . 1 . . . 1 1 . . . . . . . . . . . 1 . . . Fabricators . | . . . . . . . . . . . . . . . . . . . . . . Repair Stations . | . . . . . . . . . . . . . . . . . . . . . . Recycling Units . | . . . . . . . . . . . . . . . . . . . . . . Scanalyzers . | . . . . . . . . . . . . . . . . . . . . . . Garrison Access . | . . . . . . . . . . . . . . . . . . . . . . Data Cores Recovered . | . . . . . . . . . . . . . . . . . . . . . . Used . | . . . . . . . . . . . . . . . . . . . . . . Hacking Detections 19 | . 1 . . . 2 1 . . . . 3 . . . . 1 3 3 3 1 1 Full Trace Events 6 | . 1 . . . . . . . . . 1 . . . . . 2 1 1 . . Feedback Events . | . . . . . . . . . . . . . . . . . . . . . . Feedback Blocked . | . . . . . . . . . . . . . . . . . . . . . . Robot Schematics Acquired 5 | . . . . . . . . . 5 . . . . . . . . . . . . Robots Built . | . . . . . . . . . . . . . . . . . . . . . . Authchips . | . . . . . . . . . . . . . . . . . . . . . . Time . | . . . . . . . . . . . . . . . . . . . . . . Total Robot Build Rating . | . . . . . . . . . . . . . . . . . . . . . . Part Schematics Acquired 13 | . . . . . . . . . 13 . . . . . . . . . . . . Parts Built . | . . . . . . . . . . . . . . . . . . . . . . Authchips . | . . . . . . . . . . . . . . . . . . . . . . Time 76 | . . . . . . . . . . . . . . . . . 76 . . . . Total Part Build Rating . | . . . . . . . . . . . . . . . . . . . . . . Parts Repaired . | . . . . . . . . . . . . . . . . . . . . . . Time . | . . . . . . . . . . . . . . . . . . . . . . Parts Recycled . | . . . . . . . . . . . . . . . . . . . . . . Recycled Matter . | . . . . . . . . . . . . . . . . . . . . . . Retrieved Matter . | . . . . . . . . . . . . . . . . . . . . . . Retrieved Components . | . . . . . . . . . . . . . . . . . . . . . . Parts Scanalyzed . | . . . . . . . . . . . . . . . . . . . . . . Part Schematics Acquired . | . . . . . . . . . . . . . . . . . . . . . . Parts Damaged . | . . . . . . . . . . . . . . . . . . . . . . Bothacking | -11 -10 -10 -10 -9 -8 -7 -7 -7 -7 -6 -6 -6 -6 -6 -5 -5 -4 -4 -3 -2 -1 ------------ Run | Jun Mat Min Exi Min Mat Fac Low Low Dat Pro Fac Low Low Zio Pro Fac Fac Ext Res Res Acc Used RIF Installer . | . . . . . . . . . . . . . . . . . . . . . . Robots Hacked . | . . . . . . . . . . . . . . . . . . . . . . Non-combat . | . . . . . . . . . . . . . . . . . . . . . . Combat . | . . . . . . . . . . . . . . . . . . . . . . Robot Hacks Applied . | . . . . . . . . . . . . . . . . . . . . . . Relay Couplers Released . | . . . . . . . . . . . . . . . . . . . . . . Fabnet Peak Effective % . | . . . . . . . . . . . . . . . . . . . . . . Robots Rewired . | . . . . . . . . . . . . . . . . . . . . . . Allies Hacked . | . . . . . . . . . . . . . . . . . . . . . . Hacks Repelled . | . . . . . . . . . . . . . . . . . . . . . . Allies | -11 -10 -10 -10 -9 -8 -7 -7 -7 -7 -6 -6 -6 -6 -6 -5 -5 -4 -4 -3 -2 -1 -------- Run | Jun Mat Min Exi Min Mat Fac Low Low Dat Pro Fac Low Low Zio Pro Fac Fac Ext Res Res Acc Total Allies 14 | . . 1 . . . . . . . 1 1 . . . . . . 9 . 2 . Largest Group 4 | . . 1 1 . . . . . . 1 1 . . . . . . 4 2 2 . Highest-Rated Group 210 | . . 31 31 . . . . . . 96 10 . . . . . . 210 210 192 . Highest-Rated Ally 159 | . . 31 31 . . . . . . 96 10 . . . . . . 159 159 96 . Total Orders 3 | . . . . . . . . . . . . . . . . . . 1 . 1 1 EXPLORE 3 | . . . . . . . . . . . . . . . . . . 1 . 1 1 Ally Attacks 63 | . . 10 . . . . . . . 4 . . . . . . . 41 5 3 . Total Damage 1728 | . . 148 . . . . . . . 136 . . . . . . . 1286 67 91 . Kills 13 | . . 2 . . . . . . . 2 . . . . . . . 8 1 . . Allies Corrupted . | . . . . . . . . . . . . . . . . . . . . . . Allies Melted . | . . . . . . . . . . . . . . . . . . . . . . Intel | -11 -10 -10 -10 -9 -8 -7 -7 -7 -7 -6 -6 -6 -6 -6 -5 -5 -4 -4 -3 -2 -1 ------- Run | Jun Mat Min Exi Min Mat Fac Low Low Dat Pro Fac Low Low Zio Pro Fac Fac Ext Res Res Acc Robot Analysis Total . | . . . . . . . . . . . . . . . . . . . . . . Derelict Logs Recovered 6 | . . . . . . . 1 . . 2 . . 1 1 1 . . . . . . Drone Launches 6 | . . . . . . . . . . . . . . . . . . 2 . 3 1 Drone Recoveries 2 | . . . . . . . . . . . . . . . . . . . . 1 1 Exploration | -11 -10 -10 -10 -9 -8 -7 -7 -7 -7 -6 -6 -6 -6 -6 -5 -5 -4 -4 -3 -2 -1 ------------- Run | Jun Mat Min Exi Min Mat Fac Low Low Dat Pro Fac Low Low Zio Pro Fac Fac Ext Res Res Acc Turns Passed 9493 | 49 261 510 1138 162 875 642 157 161 42 199 235 86 168 223 119 556 187 1177 1301 795 450 Spaces Moved 12008 | 43 184 361 593 76 404 715 510 317 140 452 540 331 563 696 389 1208 444 1496 1264 785 497 Core 243 | 2 . . . . . . . . . . . . . . . . . . . 43 198 Treads 7 | . . . . . . . . . . . . . . . . . . . . 6 1 Legs 2048 | . . 274 593 76 404 301 . . . . . . . . . . . 161 239 . . Wheels 312 | 41 184 87 . . . . . . . . . . . . . . . . . . . Hover 1820 | . . . . . . . . . . . . . . . . . . 68 1025 639 88 Flight 7578 | . . . . . . 414 510 317 140 452 540 331 563 696 389 1208 444 1267 . 97 210 Fastest Speed 26 | 50 80 80 120 190 120 26 27 27 30 30 26 26 26 29 30 33 34 34 43 40 40 Average Speed 59 | 78 80 131 189 190 167 66 27 30 30 30 28 26 27 29 30 33 34 47 69 52 71 Slowest Speed 260 | 80 80 190 190 190 190 190 27 34 30 30 30 26 29 30 33 34 34 120 260 250 200 Overloaded Moves 14 | . . . . . . . . . . . . . . . . . . . . 14 . Propulsion Burnouts . | . . . . . . . . . . . . . . . . . . . . . . Robots Hopped 1 | . . . . . . . . . . . . . . . . . . . . . 1 Cave-ins Triggered . | . . . . . . . . . . . . . . . . . . . . . . Exploration Rate (%) 46 | 4 32 68 91 24 40 20 71 53 74 69 15 55 67 78 61 25 12 85 27 32 11 Regions Visited 21 Branch Regions 12 Pre-discovered Areas 1 | . . . . . . . . . 1 . . . . . . . . . . . . Known Exits Taken 4 | . . . . . 1 . . . . . 1 . . . 1 1 . . . . . Unknown Exits Taken 17 | 1 1 1 1 1 . 1 1 1 1 1 . 1 1 1 . . 1 1 1 1 . Scrap Searched 18 | . . 2 . . . . 1 7 . 1 . . 4 2 1 . . . . . . Spaces Dug 91 | . . . . . 8 2 . . . . 2 . . . . 5 . 3 46 25 . Terrain Destroyed 387 | . . 17 . . 53 2 . . . . 2 . . . . 48 . 127 109 25 4 Melee 56 | . . . . . 8 2 . . . . 2 . . . . 5 . 3 11 25 . Projectile 1 | . . 1 . . . . . . . . . . . . . . . . . . . AOE 330 | . . 16 . . 45 . . . . . . . . . . 43 . 124 98 . 4 Terrain Rammed . | . . . . . . . . . . . . . . . . . . . . . . Walls Destroyed . | . . . . . . . . . . . . . . . . . . . . . . Machines Disabled . | . . . . . . . . . . . . . . . . . . . . . . Actions | -11 -10 -10 -10 -9 -8 -7 -7 -7 -7 -6 -6 -6 -6 -6 -5 -5 -4 -4 -3 -2 -1 --------- Run | Jun Mat Min Exi Min Mat Fac Low Low Dat Pro Fac Low Low Zio Pro Fac Fac Ext Res Res Acc Total 13826 | 54 272 399 607 88 530 835 527 365 139 514 618 330 575 713 388 1314 478 1879 1599 1023 579 Wait 932 | . 55 4 . 8 48 28 13 29 . 63 16 . 7 14 . 47 22 204 186 142 46 Move 11986 | 43 183 360 592 75 403 714 509 316 139 451 539 330 562 695 388 1207 443 1495 1263 784 495 Hop 1 | . . . . . . . . . . . . . . . . . . . . . 1 Pick Up 113 | 4 10 8 2 2 13 15 2 2 . . 5 . 2 1 . 13 3 5 23 2 1 Fast Attach 99 | 6 1 6 3 . 2 8 . 1 . . 4 . 1 2 . 3 2 23 18 8 11 Attach 55 | . . . 1 . 2 6 . 5 . . 3 . 1 . . 4 . 13 6 10 4 Detach 31 | . . . 3 . . 2 . 3 . . 1 . . 1 . 1 . 8 2 5 5 Swap 82 | 1 2 3 2 . 16 15 . . . . 3 . . . . 10 . 8 16 5 1 Drop 139 | . 6 16 4 . 10 22 2 . . . 8 . 2 . . 9 6 14 28 3 9 Fire 41 | . 14 2 . . 3 . . . . . . . . . . 1 . 5 10 . 6 Melee 266 | . . . . 3 33 25 1 9 . . 3 . . . . 19 2 60 47 64 . Ram 1 | . 1 . . . . . . . . . . . . . . . . . . . . Kick . | . . . . . . . . . . . . . . . . . . . . . . Crush . | . . . . . . . . . . . . . . . . . . . . . . Escape Stasis 80 | . . . . . . . . . . . 36 . . . . . . 44 . . . Rewire . | . . . . . . . . . . . . . . . . . . . . . . Trap . | . . . . . . . . . . . . . . . . . . . . . . Miscellaneous . | . . . . . . . . . . . . . . . . . . . . . . Route ------- -11/Junkyard -10/Materials (discovered 2 exits: [*Mat] / *Min) -10/Mines (discovered 3 exits: [*Mat x2] / *Exi) -10/Exiles (discovered 2 exits: [*Min x2]) -9/Mines (discovered 2 exits: *Mat x2) -8/Materials (discovered 3 exits: *Fac x3) -7/Factory (discovered 2 exits: [*Sto] / *Low) -7/Lower Caves -7/Lower Caves (discovered 2 exits: *Fac / *Dat) -7/Data Miner -6/Proximity Caves -6/Factory (discovered 3 exits: Fac / *Low x2) -6/Lower Caves -6/Lower Caves -6/Zion -5/Proximity Caves -5/Factory -4/Factory (discovered 2 exits: [*Upp] / *Ext) -4/Extension (discovered 2 exits: *Res / *Cet) -3/Research -2/Research -1/Access History --------- Turn | Location | Event 7 | -11/Junkyard | Discovered new exit (range 15) 50 | -11/Junkyard | Entered Materials 235 | -10/Materials | Discovered new exit (range 3) 307 | -10/Materials | Discovered new exit (range 6) 311 | -10/Materials | Entered Mines 316 | -10/Mines | Build established: Mutant 377 | -10/Mines | Met a Derelict shopkeep closing up shop 474 | -10/Mines | Received a Rocket Launcher from a helpful Derelict 649 | -10/Mines | Received a Mining Laser from a helpful Derelict 671 | -10/Mines | Discovered new exit (range 7) 755 | -10/Mines | Discovered new exit (range 10) 812 | -10/Mines | Deemed a non-threat by the Exiles lab entrance 812 | -10/Mines | Discovered new exit (range 6) 821 | -10/Mines | Entered Exiles 821 | -10/Exiles | Accompanied by 1 ally 846 | -10/Exiles | Discovered new exit (range 15) 869 | -10/Exiles | Met 8R-AWN 905 | -10/Exiles | Met EX-HEX 1050 | -10/Exiles | Met EX-DEC 1089 | -10/Exiles | Visited The Gauntlet 1354 | -10/Exiles | Discovered new exit (range 12) 1509 | -10/Exiles | Met EX-BIN 1563 | -10/Exiles | Aligned with FarCom system 1564 | -10/Exiles | Given EX-Vault access code 1627 | -10/Exiles | Opened EX-Vault 1642 | -10/Exiles | Found Prototype Energy Cannon 1642 | -10/Exiles | Identified Firepult 1651 | -10/Exiles | Found Prototype Energy Cannon 1651 | -10/Exiles | Identified YOLO Cannon 1655 | -10/Exiles | Found Prototype Slashing Weapon 1655 | -10/Exiles | Identified Longsword +1 1708 | -10/Exiles | Warned to stay clear of 0b10 Research branches 1959 | -10/Exiles | Left Exiles lab with Longsword +1 1959 | -10/Exiles | Entered Mines 1959 | -9/Mines | Discovered new exit (range 8) 2091 | -9/Mines | Discovered new exit (range 9) 2121 | -9/Mines | Entered Materials 2121 | -8/Materials | Evolved 4 slots: Power x1, Propulsion x2, Utility x1 2638 | -8/Materials | Identified exit to Factory 2996 | -8/Materials | Entered Factory 2996 | -7/Factory | Evolved 2 slots: Utility x1, Weapon x1 3379 | -7/Factory | Found Prototype Launcher 3380 | -7/Factory | Identified Rocket Array 3385 | -7/Factory | Found Rocket Array 3549 | -7/Factory | Discovered new exit (range 8) 3601 | -7/Factory | Discovered new exit (range 5) 3638 | -7/Factory | Entered Lower Caves 3639 | -7/Lower Caves | Encountered a Warlord checkpoint 3647 | -7/Lower Caves | Learned Factory terminal intel 3667 | -7/Lower Caves | Attracted the attention of an 0b10 checkpoint 3786 | -7/Lower Caves | Discovered new exit (range 11) 3792 | -7/Lower Caves | Ambushed by wild Derelicts 3795 | -7/Lower Caves | Entered another Lower Caves area 3835 | -7/Lower Caves | Lost 4 parts (2p2n) 3865 | -7/Lower Caves | Discovered new exit (range 9) 3890 | -7/Lower Caves | Attracted the attention of an 0b10 outpost 3891 | -7/Lower Caves | Attracted the attention of an 0b10 checkpoint 3891 | -7/Lower Caves | Encountered a Warlord checkpoint 3953 | -7/Lower Caves | Discovered new exit (range 8) 3956 | -7/Lower Caves | Entered Data Miner 3956 | -7/Data Miner | Discovered new exit (range 6) 3963 | -7/Data Miner | Met Data Miner 3974 | -7/Data Miner | Acquired the access code to Warlord's prototype stash 3974 | -7/Data Miner | Learned location of Section 7 (-3) 3979 | -7/Data Miner | Received God Mode back door access code from Data Miner 3998 | -7/Data Miner | Entered Proximity Caves 4007 | -6/Proximity Caves | Learned location of 1 exit from Factory 4019 | -6/Proximity Caves | Attracted the attention of an 0b10 checkpoint 4087 | -6/Proximity Caves | Escorted by Enhanced Grunt 4109 | -6/Proximity Caves | Learned location of 1 exit from Factory 4116 | -6/Proximity Caves | Discovered new exit (range 8) 4123 | -6/Proximity Caves | Spotted B-75 Beast 4156 | -6/Proximity Caves | Build established: Sprinter 4197 | -6/Proximity Caves | Entered Factory 4197 | -6/Factory | Evolved 2 slots: Propulsion x1, Utility x1 4198 | -6/Factory | Identified exit to Lower Caves 4198 | -6/Factory | Identified exit to Factory 4199 | -6/Factory | Loaded intel: 26 terminal locations 4413 | -6/Factory | Discovered exit to Lower Caves (range 15) 4432 | -6/Factory | Entered Lower Caves 4432 | -6/Lower Caves | Accompanied by 1 ally 4445 | -6/Lower Caves | Spotted B-75 Beast 4507 | -6/Lower Caves | Discovered new exit (range 9) 4518 | -6/Lower Caves | Entered another Lower Caves area 4621 | -6/Lower Caves | Learned Factory security intel 4633 | -6/Lower Caves | Discovered new exit (range 14) 4635 | -6/Lower Caves | Encountered a Warlord checkpoint 4686 | -6/Lower Caves | Entered Zion 4705 | -6/Zion | Learned location of 1 exit from Lower Caves 4772 | -6/Zion | Rebuked by Imprinter 4792 | -6/Zion | Given A8's code to call for help 4905 | -6/Zion | Discovered new exit (range 13) 4909 | -6/Zion | Entered Proximity Caves 4923 | -5/Proximity Caves | Learned location of 1 exit from Factory 5001 | -5/Proximity Caves | Spotted B-75 Beast 5023 | -5/Proximity Caves | Discovered exit to Factory (range 15) 5028 | -5/Proximity Caves | Entered Factory 5028 | -5/Factory | Evolved 2 slots: Utility x2 5029 | -5/Factory | Identified exit to Factory 5445 | -5/Factory | Build established: Infiltrator-Mutant 5584 | -5/Factory | Entered another Factory area 5584 | -4/Factory | Evolved 2 slots: Utility x2 5606 | -4/Factory | Discovered new exit (range 4) 5763 | -4/Factory | Discovered new exit (range 6) 5770 | -4/Factory | Incoming investigation squad redirected 5771 | -4/Factory | Entered Extension 5848 | -4/Extension | Spotted B-86 Titan 5910 | -4/Extension | Disrupted transfer network 5938 | -4/Extension | Rescued a captive Derelict 5939 | -4/Extension | Rescued a captive Derelict 5944 | -4/Extension | Rescued a captive Derelict 5954 | -4/Extension | Rescued a captive Derelict 5971 | -4/Extension | Rescued a captive Derelict 5975 | -4/Extension | Rescued a captive Derelict 5976 | -4/Extension | Identified exit to Cetus 6479 | -4/Extension | Build established: Scavenger-Mutant 6493 | -4/Extension | Lost 3 parts (2n1u) 6513 | -4/Extension | Spotted B-86 Titan 6521 | -4/Extension | Core integrity fell below 50% 6535 | -4/Extension | Rescued a captive Derelict 6536 | -4/Extension | Rescued a captive Derelict 6630 | -4/Extension | Lost 5 parts (1p2n1u1w) 6860 | -4/Extension | Rescued A7 6879 | -4/Extension | Rescued a captive Derelict 6914 | -4/Extension | Discovered new exit (range 10) 6948 | -4/Extension | Entered Research 6948 | -3/Research | Accompanied by 2 allies (A7) 6948 | -3/Research | Evolved 2 slots: Propulsion x1, Utility x1 7174 | -3/Research | Found Fusion Bomb Launcher 7731 | -3/Research | Lost 3 parts (1p2u) 7898 | -3/Research | Found Prototype Processor 7899 | -3/Research | Identified Spectral Analyzer 7932 | -3/Research | Found Enh. Force Lance 8156 | -3/Research | Discovered new exit (range 16) 8249 | -3/Research | Entered another Research area 8249 | -2/Research | Evolved 2 slots: Utility x2 8606 | -2/Research | Lost 6 parts (3p1n1u1w) 8751 | -2/Research | Enhanced Grunt warped into view, answering call for help 8754 | -2/Research | Enhanced Grunt warped into view, answering call for help 8777 | -2/Research | First assault squad dispatched 8831 | -2/Research | Spotted B-90 Cyclops 8885 | -2/Research | Lost 5 parts (1p3n1u) 8930 | -2/Research | System corruption reached 10% 8937 | -2/Research | Core integrity fell below 50% 8999 | -2/Research | Search patrols dispatched 9013 | -2/Research | Lost 4 parts (3n1u) 9013 | -2/Research | Core integrity fell below 20% 9031 | -2/Research | Found Prototype Device 9031 | -2/Research | Identified Exp. Shock Absorption System 9043 | -2/Research | Discovered new exit (range 3) 9044 | -2/Research | Entered Access 9044 | -1/Access | Evolved 2 slots: Power x1, Weapon x1 9138 | -1/Access | Build established: Mutant 9338 | -1/Access | Search patrols dispatched 9422 | -1/Access | Core integrity fell below 50% 9422 | -1/Access | System corruption reached 10% 9452 | -1/Access | Lost 7 parts (1p2n2u2w) 9479 | -1/Access | Spotted B-99 Colossus 9483 | -1/Access | Core integrity fell below 20% 9494 | -1/Access | Destroyed by S-43 Plague with Heavy Machine Gun Last Messages --------------- 09421_ P-80 Master unfolds itself. 09426_ Dropped Enh. Force Rifle. 09433_ System corrupted: Component data lost. 09433_ Penetrated by Slug. 09436_ Slug penetrates Wall. 09443_ Acquired Cmb. Antigrav System. 09453_ K2 HIEPYCN&GNG5RI%ORYY 09468_ Adv. Melee Analysis Suite destroyed. 09482_ Penetrated by Slug. 09482_ Slug penetrates Wall. 09482_ Penetrated by Slug. 09482_ Slug penetrates Wall. 09485_ Knocked back. 09485_ Penetrated by Slug. 09485_ Slug penetrates Wall. 09489_ VAC/ASN9%GP A/EI5&#T|I#90A 09489_ Slug penetrates Wall. 09492_ Penetrated by Slug. 09492_ Slug penetrates Wall. [Achievement: Tester] Map ----- +----------------------------------------------------+ | ########## "" # #??? | | "T + #??? | | ######### # #??? | | #???????# # #??? | | #???????###################??? | | #????????????????????????????? | | ############?????????????????? | | + ! #?????????????????? | | ## [ #?????????????????? | | ## " #?????????????????? | | ## """ #?????????????????? | | ## """ = #??????o??????????? | | ## " #?????????????????? | | ## ! #?????????????????? | | ## #????###??????????? | | ######+#####???## ?????? | | ? ? ??? #????? | | ??? #????? | | ? #????? | | """"" #????? | | """F"" #????? | | # """!"" ?????? | | # !!! ###???? | | # BB ##??? | | # BB ;#??? | | # ! ;@##### | | [[[ ]] s# % # | | #### [[[ ]] # s # | | ???# [[ ]] #s # | | ???# ss # | | #### s# # | | p pp p % # # | | #### ####"#### # | | ???# ##"##+############### | | ???# ##?# #??????? | | #??# #??????? | | #### #??# #??????? | | ???########??# #??????? | | ?????????????# #??????? | | ?????????????# #??????? | | ?????????????# #??????? | | ?????????????# #??????? | | ?????????????###########??????? | | ??????????????????????????????? | | ??????????????????????????????? | | ??????????????????????????????? | | ??????????????????????????????? | | ??????????????????????????????? | | ??????????????????????????????? | | ??????????????????????????????? | +----------------------------------------------------+ Best States ------------- Heat Dissipation 52 Energy Generation 43 Energy Capacity 850 Matter Stores 300 Matter Capacity 300 Sight Range 16 Terrain Scan Density 10 ECM Strength 2 Jamming Range 16 Cloak Strength 3 Additional Mass Support 9 Base Temperature (-) 100 Armor Coverage 225 Evasion (%) 74 Melee Accuracy 38 Launcher Accuracy 40 Target Analysis 12 Armor Integrity Analysis 30 Recoil Reduction 1 Item Schematics ----------------- Combat Drone Bay | -7/Data Miner | Free Lgt. Regenerative Plating | -7/Data Miner | Free Cld. Cesium-ion Thruster | -7/Data Miner | Free Thermal Defense Suite | -7/Data Miner | Free Force Rifle | -7/Data Miner | Free Cmb. Gravmag System | -7/Data Miner | Free Adv. Shield Generator | -7/Data Miner | Free Variable Charge Gun | -7/Data Miner | Free Imp. Cryofiber Web | -7/Data Miner | Free Disruptor Cannon | -7/Data Miner | Free Antigrav System | -7/Data Miner | Free Adv. Cryofiber Web | -7/Data Miner | Free Imp. Armor Integrity Analyzer | -7/Data Miner | Free Robot Schematics ------------------ G-50 Soldier | -7/Data Miner | Free M-28 Smith | -7/Data Miner | Free L-41 Fighter | -7/Data Miner | Free B-48 Gladiator | -7/Data Miner | Free M-22 Extractor | -7/Data Miner | Free Fabricated ------------ Nothing Alien Tech Used ----------------- None Achievements -------------- Ambidextrous Denied? Tester Challenges ------------ None Game ------ Seed ThrowingNodeKinecellerator Manual? 0 Play Time 03:17:50 Cumulative 57.7 hours Start 2023.06.27 @ 13:22:10 End 2023.06.27 @ 17:36:31 Sessions 1 Manual Loads 0 Difficulty Rogue Special Mode None Game No. 46 Rogue 46 Adventurer 0 Explorer 0 Win Type - Total 0 Types 0/0/0/0/0/0/0/0/0 Lore% 36 Gallery% 50 Achievement% 39 Wizard Run 0 Options --------- ASCII 0 Keyboard 1 Movement Vi Keybinds 0 Fullscreen 1 Font 24/Smallcaps Map View 76x50 Tactical HUD 1 Map Filters NONE Filters NONE Steam 1 RUN: 91a02632-39ac-40db-8f76-390bf5a1e6bd